Workbook

Sheet 0001
A4: 75 | C4: =AVERAGE(D$4:$D4) -> 75 | D4: =A4 -> 75 | E4: =(D4+C4)/D4 -> 2 | G4: =D4 -> 75 | H4: =AVERAGE(E4,N4) ->  | J4: =(SUM(INDEX(D:D,MIN(4,ROW()-2)):INDEX(D:D,ROW()))+AVERAGE(INDEX(D:D,MIN(4,ROW()-2)):INDEX(D:D,ROW())))/D4 -> 2 | K4: =(#REF!+#REF!+D4+AVERAGE(#REF!))/#REF! ->  | L4: =(#REF!+D4+AVERAGE(D4:D4))/D4 ->  | N4: =MIN(D4,J4,L4) ->  | Q4: =IF(J4<AVERAGE($J$4:J4),J4,"") ->  | R4: =IF(Q4<=AVERAGE($Q$4:Q4),J4,"") -> 
A5: 94 | C5: =AVERAGE(D$4:$D5) -> 84.5 | D5: 94 | E5: 1.89893617 | G5: 94 | H5: 2.29787234 | J5: =(SUM(INDEX(D:D,MIN(4,ROW()-2)):INDEX(D:D,ROW()))+AVERAGE(INDEX(D:D,MIN(4,ROW()-2)):INDEX(D:D,ROW())))/D5 -> 2.696808511 | K5: =(#REF!+D4+D5+AVERAGE(D4:D4))/D4 ->  | L5: =(D4+D5+AVERAGE(D4:D5))/D5 -> 2.696808511 | N5: 2.696808511 | Q5: =IF(J5<AVERAGE($J$4:J5),J5,"") ->  | R5: =IF(Q5<=AVERAGE($Q$4:Q5),J5,"") -> 
A6: 45 | C6: =AVERAGE(D$4:$D6) -> 71.33333333 | D6: =A6 -> 45 | E6: =(D6+C6)/D6 -> 2.585185185 | G6: =D6 -> 45 | H6: =AVERAGE(E6,N6) -> 3.609259259 | J6: =(SUM(INDEX(D:D,MIN(4,ROW()-2)):INDEX(D:D,ROW()))+AVERAGE(INDEX(D:D,MIN(4,ROW()-2)):INDEX(D:D,ROW())))/D6 -> 6.340740741 | K6: =(D4+D5+D6+AVERAGE(D4:D5))/D5 -> 3.175531915 | L6: =(D5+D6+AVERAGE(D5:D6))/D6 -> 4.633333333 | N6: =MIN(D6,J6,L6) -> 4.633333333 | Q6: =IF(J6<AVERAGE($J$4:J6),J6,"") ->  | R6: =IF(Q6<=AVERAGE($Q$4:Q6),J6,"") -> 
A7: 53 | C7: =AVERAGE(D$4:$D8) -> 64.8 | D7: 53 | E7: 2.222641509 | G7: 53 | H7: 2.498113208 | J7: =(SUM(INDEX(D:D,MIN(4,ROW()-2)):INDEX(D:D,ROW()))+AVERAGE(INDEX(D:D,MIN(4,ROW()-2)):INDEX(D:D,ROW())))/D7 -> 6.297169811 | K7: 5.811111111 | L7: 2.773584906 | N7: 2.773584906 | Q7: =IF(J7<AVERAGE($J$4:J7),J7,"") ->  | R7: =IF(Q7<=AVERAGE($Q$4:Q7),J7,"") -> 
A8: 57 | C8: =AVERAGE(D$4:$D8) -> 64.8 | D8: 57 | E8: 2.136842105 | G8: 57 | H8: 2.515789474 | J8: =(SUM(INDEX(D:D,MIN(4,ROW()-2)):INDEX(D:D,ROW()))+AVERAGE(INDEX(D:D,MIN(4,ROW()-2)):INDEX(D:D,ROW())))/D8 -> 6.821052632 | K8: 3.849056604 | L8: 2.894736842 | N8: 2.894736842 | Q8: =IF(J8<AVERAGE($J$4:J8),J8,"") ->  | R8: =IF(Q8<=AVERAGE($Q$4:Q8),J8,"") -> 
A9: 14 | C9: =AVERAGE(D$4:$D11) -> 47 | D9: 14 | E9: 4.357142857 | G9: 14 | H9: 5.982142857 | J9: =(SUM(INDEX(D:D,MIN(4,ROW()-2)):INDEX(D:D,ROW()))+AVERAGE(INDEX(D:D,MIN(4,ROW()-2)):INDEX(D:D,ROW())))/D9 -> 28.16666667 | K9: 3.140350877 | L9: 7.607142857 | N9: 7.607142857 | Q9: =IF(J9<AVERAGE($J$4:J9),J9,"") ->  | R9: =IF(Q9<=AVERAGE($Q$4:Q9),J9,"") -> 
A10: 9 | C10: =AVERAGE(D$4:$D10) -> 49.57142857 | D10: 9 | E10: 6.507936508 | G10: 9 | H10: 5.170634921 | J10: =(SUM(INDEX(D:D,MIN(4,ROW()-2)):INDEX(D:D,ROW()))+AVERAGE(INDEX(D:D,MIN(4,ROW()-2)):INDEX(D:D,ROW())))/D10 -> 44.06349206 | K10: 8.25 | L10: 3.833333333 | N10: 3.833333333 | Q10: =IF(J10<AVERAGE($J$4:J10),J10,"") ->  | R10: =IF(Q10<=AVERAGE($Q$4:Q10),J10,"") -> 
A11: 29 | C11: =AVERAGE(D$4:$D13) -> 49.9 | D11: 29 | E11: 2.720689655 | G11: 29 | H11: 2.343103448 | J11: =(SUM(INDEX(D:D,MIN(4,ROW()-2)):INDEX(D:D,ROW()))+AVERAGE(INDEX(D:D,MIN(4,ROW()-2)):INDEX(D:D,ROW())))/D11 -> 14.5862069 | K11: 7.055555556 | L11: 1.965517241 | N11: 1.965517241 | Q11: =IF(J11<AVERAGE($J$4:J11),J11,"") ->  | R11: =IF(Q11<=AVERAGE($Q$4:Q11),J11,"") -> 
A12: 61 | C12: =AVERAGE(D$4:$D14) -> 51.63636364 | D12: 61 | E12: 1.846497765 | G12: 61 | H12: 2.029806259 | J12: =(SUM(INDEX(D:D,MIN(4,ROW()-2)):INDEX(D:D,ROW()))+AVERAGE(INDEX(D:D,MIN(4,ROW()-2)):INDEX(D:D,ROW())))/D12 -> 7.95992714 | K12: 4.068965517 | L12: 2.213114754 | N12: 2.213114754 | Q12: =IF(J12<AVERAGE($J$4:J12),J12,"") -> 7.95992714 | R12: =IF(Q12<=AVERAGE($Q$4:Q12),J12,"") -> 7.95992714
A13: 62 | C13: =AVERAGE(D$4:$D13) -> 49.9 | D13: 62 | E13: 1.80483871 | G13: 62 | H13: 2.390322581 | J13: =(SUM(INDEX(D:D,MIN(4,ROW()-2)):INDEX(D:D,ROW()))+AVERAGE(INDEX(D:D,MIN(4,ROW()-2)):INDEX(D:D,ROW())))/D13 -> 8.853225806 | K13: 3.229508197 | L13: 2.975806452 | N13: 2.975806452 | Q13: =IF(J13<AVERAGE($J$4:J13),J13,"") -> 8.853225806 | R13: =IF(Q13<=AVERAGE($Q$4:Q13),J13,"") -> 
A14: 69 | C14: =AVERAGE(D$4:$D15) -> 49.08333333 | D14: 69 | E14: 1.711352657 | G14: 69 | H14: 2.279589372 | J14: =(SUM(INDEX(D:D,MIN(4,ROW()-2)):INDEX(D:D,ROW()))+AVERAGE(INDEX(D:D,MIN(4,ROW()-2)):INDEX(D:D,ROW())))/D14 -> 8.980237154 | K14: 4.088709677 | L14: 2.847826087 | N14: 2.847826087 | Q14: =IF(J14<AVERAGE($J$4:J14),J14,"") -> 8.980237154 | R14: =IF(Q14<=AVERAGE($Q$4:Q14),J14,"") -> 
A15: 21 | C15: =AVERAGE(D$4:$D19) -> 54.125 | D15: 21 | E15: 3.577380952 | G15: 21 | H15: 5.00297619 | J15: =(SUM(INDEX(D:D,MIN(4,ROW()-2)):INDEX(D:D,ROW()))+AVERAGE(INDEX(D:D,MIN(4,ROW()-2)):INDEX(D:D,ROW())))/D15 -> 30.38492063 | K15: 3.152173913 | L15: 6.428571429 | N15: 6.428571429 | Q15: =IF(J15<AVERAGE($J$4:J15),J15,"") ->  | R15: =IF(Q15<=AVERAGE($Q$4:Q15),J15,"") -> 
A16: 90 | C16: =AVERAGE(D$4:$D16) -> 52.23076923 | D16: 90 | E16: 1.58034188 | G16: 90 | H16: 1.71517094 | J16: =(SUM(INDEX(D:D,MIN(4,ROW()-2)):INDEX(D:D,ROW()))+AVERAGE(INDEX(D:D,MIN(4,ROW()-2)):INDEX(D:D,ROW())))/D16 -> 8.124786325 | K16: 10.71428571 | L16: 1.85 | N16: 1.85 | Q16: =IF(J16<AVERAGE($J$4:J16),J16,"") -> 8.124786325 | R16: =IF(Q16<=AVERAGE($Q$4:Q16),J16,"") -> 8.124786325
A17: 96 | C17: =AVERAGE(D$4:$D18) -> 54.66666667 | D17: =A17 -> 96 | E17: =(D17+C17)/D17 -> 1.569444444 | G17: =D17 -> 96 | H17: =AVERAGE(E17,N17) -> 2.237847222 | J17: =(SUM(INDEX(D:D,MIN(4,ROW()-2)):INDEX(D:D,ROW()))+AVERAGE(INDEX(D:D,MIN(4,ROW()-2)):INDEX(D:D,ROW())))/D17 -> 8.649553571 | K17: =(D15+D16+D17+AVERAGE(D15:D16))/D16 -> 2.916666667 | L17: =(D16+D17+AVERAGE(D16:D17))/D17 -> 2.90625 | N17: =MIN(D17,J17,L17) -> 2.90625 | Q17: =IF(J17<AVERAGE($J$4:J17),J17,"") -> 8.649553571 | R17: =IF(Q17<=AVERAGE($Q$5:Q17),J17,"") -> 
A18: 45 | C18: =AVERAGE(D$4:$D19) -> 54.125 | D18: =A18 -> 45 | E18: =(D18+C18)/D18 -> 2.202777778 | G18: =D18 -> 45 | H18: =AVERAGE(E18,N18) -> 3.451388889 | J18: =(SUM(INDEX(D:D,MIN(4,ROW()-2)):INDEX(D:D,ROW()))+AVERAGE(INDEX(D:D,MIN(4,ROW()-2)):INDEX(D:D,ROW())))/D18 -> 19.43703704 | K18: =(D16+D17+D18+AVERAGE(D16:D17))/D17 -> 3.375 | L18: =(D17+D18+AVERAGE(D17:D18))/D18 -> 4.7 | N18: =MIN(D18,J18,L18) -> 4.7 | Q18: =IF(J18<AVERAGE($J$4:J18),J18,"") ->  | R18: =IF(Q18<=AVERAGE($Q$6:Q18),J18,"") -> 
A19: 46 | C19: =AVERAGE(D$4:$D19) -> 54.125 | D19: =A19 -> 46 | E19: =(D19+C19)/D19 -> 2.176630435 | G19: =D19 -> 46 | H19: =AVERAGE(E19,N19) -> 2.57201087 | J19: =(SUM(INDEX(D:D,MIN(4,ROW()-2)):INDEX(D:D,ROW()))+AVERAGE(INDEX(D:D,MIN(4,ROW()-2)):INDEX(D:D,ROW())))/D19 -> 20.00271739 | K19: =(D17+D18+D19+AVERAGE(D17:D18))/D18 -> 5.722222222 | L19: =(D18+D19+AVERAGE(D18:D19))/D19 -> 2.967391304 | N19: =MIN(D19,J19,L19) -> 2.967391304 | Q19: =IF(J19<AVERAGE($J$5:J19),J19,"") ->  | R19: =IF(Q19<=AVERAGE($Q$7:Q19),J19,"") -> 
